bitfinex/quotes_BTCUSD_20250723
["timestamp","ask_amount","ask_price","bid_price","bid_amount"]
[1753270836052,0.35222338,118680.0,118670.0,1.06631798]
[1753270836451,0.35222338,118680.0,118670.0,1.07474428]
[1753270836696,0.35222338,118680.0,118670.0,1.08317065]
[1753270836913,0.35222338,118680.0,118670.0,1.08317023]
[1753270837136,0.35222338,118680.0,118670.0,1.074744]
[1753270837355,0.35222338,118680.0,118670.0,1.05789133]
[1753270837575,0.35222338,118680.0,118670.0,1.0663177]
[1753270837794,0.35222338,118680.0,118670.0,1.074744]
[1753270838008,0.35222338,118680.0,118670.0,1.08317023]
[1753270838484,0.35222338,118680.0,118670.0,1.074744]
[1753270838687,0.35222338,118680.0,118670.0,1.08317023]
[1753270839082,0.35222338,118680.0,118670.0,1.05789133]
[1753270839829,0.35222338,118680.0,118670.0,1.0663177]
[1753270840462,0.35222338,118680.0,118670.0,1.074744]
[1753270841124,0.35222331,118680.0,118670.0,1.074744]
[1753270841938,0.35222331,118680.0,118670.0,1.05789133]
[1753270842398,0.35222331,118680.0,118670.0,1.0663177]
[1753270842626,0.35222331,118680.0,118670.0,1.05789133]
[1753270842853,0.34379772,118680.0,118670.0,1.05789161]
[1753270843776,0.33537206,118680.0,118670.0,0.77383421]
[1753270843990,0.33537206,118680.0,118670.0,1.05789168]
[1753270844409,0.33537206,118680.0,118670.0,1.06631819]
[1753270845292,0.33537206,118680.0,118670.0,1.10187189]
[1753270845708,0.33537206,118680.0,118670.0,1.00896808]
[1753270845939,0.31852039,118680.0,118670.0,0.80613117]
[1753270846158,0.31852039,118680.0,118670.0,0.75563117]
[1753270846554,0.31852039,118680.0,118670.0,0.43602]
[1753270846973,0.31852039,118680.0,118670.0,0.75563117]
[1753270847628,0.37290039,118680.0,118670.0,0.43094]
[1753270847820,0.37523039,118680.0,118670.0,0.43094]
[1753270848235,0.77523039,118680.0,118670.0,0.43094]
[1753270848441,0.77523039,118680.0,118670.0,0.45165117]
[1753270849357,1.00970769,118680.0,118670.0,0.13204]
[1753270849588,1.00970769,118680.0,118670.0,0.45165117]
[1753270850981,1.00970769,118680.0,118670.0,0.13204]
[1753270853148,1.00737769,118680.0,118670.0,0.13204]
[1753270859570,1.00970769,118680.0,118670.0,0.13204]
[1753270860088,0.60970769,118680.0,118670.0,0.13204]
[1753270860845,0.60737769,118680.0,118670.0,0.13204]
[1753270866038,0.55497769,118680.0,118670.0,0.13204]
[1753270866253,0.55497769,118680.0,118670.0,0.41623242]
[1753270866940,0.55497769,118680.0,118670.0,0.13204]
[1753270868765,0.56357762,118680.0,118670.0,0.13204]
[1753270871161,0.58987762,118680.0,118670.0,0.13204]
[1753270871361,0.61547762,118680.0,118670.0,0.45173798]
[1753270871567,0.61547762,118680.0,118670.0,0.003]
[1753270871568,0.61780762,118680.0,118670.0,0.003]
[1753270871723,0.61780762,118680.0,118670.0,0.13192]
[1753270871996,0.61780762,118680.0,118670.0,0.45161798]
[1753270872233,0.61780762,118680.0,118670.0,0.13192]
[1753270872465,0.61780762,118680.0,118670.0,0.45161798]
[1753270873419,0.61547762,118680.0,118670.0,0.45161798]
[1753270874876,0.58987762,118680.0,118670.0,0.45161798]
[1753270875424,0.56357762,118680.0,118670.0,0.45161798]
[1753270876593,0.56357762,118680.0,118670.0,0.13192]
[1753270876802,0.56357762,118680.0,118670.0,0.45161798]
[1753270877931,0.58947762,118680.0,118670.0,0.13192]
[1753270878139,0.58947762,118680.0,118670.0,0.45161798]
[1753270880370,0.56357762,118680.0,118670.0,0.45161798]
[1753270881306,0.56357762,118680.0,118670.0,0.45680798]
[1753270881512,0.96357762,118680.0,118670.0,0.48200798]
[1753270881997,0.48554577,118680.0,118670.0,1.08332198]
[1753270882221,0.31702538,118680.0,118670.0,0.96282821]
[1753270882442,0.15,118680.0,118670.0,1.10919667]
[1753270882666,0.18270687,118690.0,118680.0,0.2112466]
[1753270882905,0.03270687,118690.0,118680.0,1.46601268]
[1753270883128,0.03270687,118690.0,118680.0,1.1463147]
[1753270883358,0.03270687,118690.0,118680.0,1.2752347]
[1753270883802,0.03270687,118690.0,118680.0,1.2762347]
[1753270884476,0.03270687,118690.0,118680.0,1.1726227]
[1753270884690,0.03270687,118690.0,118680.0,1.3015427]
[1753270884847,0.03270687,118690.0,118680.0,1.62124068]
[1753270885262,0.03270687,118690.0,118680.0,1.56993112]
[1753270885465,0.03270687,118690.0,118680.0,1.57093112]
[1753270886437,0.03270687,118690.0,118680.0,1.57393112]
[1753270886593,0.03270687,118690.0,118680.0,1.50630358]
[1753270887209,0.03270687,118690.0,118680.0,1.37738358]
[1753270887448,0.03270687,118690.0,118680.0,1.50626358]
[1753270893716,0.03270687,118690.0,118680.0,0.9384792]
[1753270893856,0.03270687,118690.0,118680.0,1.50626358]
[1753270897491,0.03270687,118690.0,118680.0,0.9384792]
[1753270897709,0.03270687,118690.0,118680.0,1.50626358]
[1753270902411,0.03270687,118690.0,118680.0,0.9384792]
[1753270902602,0.03270687,118690.0,118680.0,1.50626358]
[1753270903428,0.03270687,118690.0,118680.0,0.9384792]
[1753270903587,0.03270687,118690.0,118680.0,1.50626358]
[1753270904986,0.03270687,118690.0,118680.0,0.9384792]
[1753270905195,0.03270687,118690.0,118680.0,1.50626358]
[1753270913111,0.03270687,118690.0,118680.0,1.50622106]
[1753270913320,0.03270687,118690.0,118680.0,1.70850106]
[1753270921159,0.03270687,118690.0,118680.0,2.09893291]
[1753270921976,0.03270687,118690.0,118680.0,1.97005291]
[1753270922405,0.03270687,118690.0,118680.0,2.09885291]
[1753270923153,0.03270687,118690.0,118680.0,1.70851072]
[1753270925451,0.03270687,118690.0,118680.0,1.57971072]
[1753270925651,0.03270687,118690.0,118680.0,1.70851072]
[1753270936074,0.03270687,118690.0,118680.0,1.14063668]
[1753270936272,0.03270687,118690.0,118680.0,1.70851072]
[1753270943059,0.03270687,118690.0,118680.0,1.62403342]
[1753270945211,0.03270687,118690.0,118680.0,2.01443687]
[1753270946075,0.03270687,118690.0,118680.0,2.31333687]
[1753270957281,0.03270687,118690.0,118680.0,2.28573687]
[1753270961452,0.03270687,118690.0,118680.0,2.28569433]
[1753270961654,0.03270687,118690.0,118680.0,2.37017163]
[1753270964711,0.03270687,118690.0,118680.0,1.9399685]
[1753270964925,0.08668687,118690.0,118680.0,1.9399685]
[1753270965419,0.03468687,118690.0,118680.0,1.8111685]
[1753270965632,0.09391161,118690.0,118680.0,1.8503012]
[1753270966059,0.10233642,118690.0,118680.0,1.8503012]
[1753270966482,0.09391161,118690.0,118680.0,1.7215012]
[1753270966662,0.09391161,118690.0,118680.0,1.8503012]
[1753270967741,0.08548687,118690.0,118680.0,1.8503012]
[1753270967969,0.08548687,118690.0,118680.0,1.92883955]
[1753270969782,0.08548687,118690.0,118680.0,1.93202955]
[1753270971960,0.08532336,118690.0,118680.0,1.93202955]
[1753270972717,0.0937481,118690.0,118680.0,1.93202955]
[1753270972983,0.08532336,118690.0,118680.0,1.93202955]
[1753270974214,0.06012336,118690.0,118680.0,1.93412955]
[1753270975796,0.03254336,118690.0,118680.0,2.39273268]
[1753270981658,0.03254336,118690.0,118680.0,2.26393268]
[1753270981860,0.03254336,118690.0,118680.0,2.39273268]
[1753270999989,0.03254336,118690.0,118680.0,1.43445519]
[1753271000270,0.03254336,118690.0,118680.0,2.39273268]
[1753271020456,0.03254336,118690.0,118680.0,2.39269014]
[1753271021518,0.03254336,118690.0,118680.0,2.36519014]
[1753271023469,0.03254336,118690.0,118680.0,2.23639014]
[1753271023650,0.03254336,118690.0,118680.0,2.36511014]
[1753271024075,0.03254336,118690.0,118680.0,2.01848431]
[1753271024481,0.03254336,118690.0,118680.0,1.88976431]
[1753271024713,0.03254336,118690.0,118680.0,2.01848431]
[1753271025378,0.03254336,118690.0,118680.0,1.88976431]
[1753271025611,0.03452336,118690.0,118680.0,1.80593596]
[1753271025848,0.08522336,118690.0,118680.0,1.90934796]
[1753271026034,0.08522336,118690.0,118680.0,1.2704963]
[1753271026235,0.08522336,118690.0,118680.0,1.90934796]
[1753271027912,0.08522336,118690.0,118680.0,1.99382526]
[1753271028120,0.08522336,118690.0,118680.0,1.86510526]
[1753271028323,0.08522336,118690.0,118680.0,1.99382526]
[1753271029403,0.10317319,118690.0,118680.0,1.1417763]
[1753271029652,0.10550319,118690.0,118680.0,1.90934796]
[1753271029781,0.0970781,118690.0,118680.0,1.90934796]
[1753271030144,0.10317298,118690.0,118680.0,1.90934796]
[1753271030517,0.10317298,118690.0,118680.0,1.78062796]
[1753271030733,0.10317298,118690.0,118680.0,1.90934796]
[1753271031090,0.10317298,118690.0,118680.0,1.78062796]
[1753271031314,0.10317298,118690.0,118680.0,1.90934796]
[1753271032154,0.12002316,118690.0,118680.0,1.48487066]
[1753271032396,0.12235316,118690.0,118680.0,1.48487066]
[1753271033237,0.10550298,118690.0,118680.0,1.48487066]
[1753271033425,0.11392793,118690.0,118680.0,1.48487066]
[1753271033675,0.11159793,118690.0,118680.0,1.48487066]
[1753271033799,0.12002302,118690.0,118680.0,1.48487066]
[1753271034623,0.12844825,118690.0,118680.0,0.83772108]
[1753271034836,0.42401008,118690.0,118680.0,0.52362902]
[1753271035049,0.45506669,118690.0,118680.0,0.95472583]
[1753271035273,0.42401008,118690.0,118680.0,0.95472583]
[1753271035485,0.42401008,118690.0,118680.0,0.6353]
[1753271035699,0.42401008,118690.0,118680.0,0.95172583]
[1753271035913,0.42401008,118690.0,118680.0,0.94972583]
[1753271036134,0.42401008,118690.0,118680.0,0.20428]
[1753271036347,0.42401008,118690.0,118680.0,0.65390583]
[1753271037476,0.42401008,118690.0,118680.0,0.65290583]
[1753271039632,0.42401008,118690.0,118680.0,0.65090583]
[1753271041679,0.42401008,118690.0,118680.0,0.65190583]
[1753271042255,0.42401008,118690.0,118680.0,0.33248]
[1753271042469,0.42401008,118690.0,118680.0,0.65190583]
[1753271042684,0.65848738,118690.0,118680.0,0.33248]
[1753271042895,1.00896982,118690.0,118680.0,0.33248]
[1753271043319,0.68954399,118690.0,118680.0,0.33248]
[1753271043539,0.68954399,118690.0,118680.0,0.33148]
[1753271044612,0.65848738,118690.0,118680.0,0.33148]
[1753271049319,0.65848738,118690.0,118680.0,0.61564494]
[1753271049955,0.65848738,118690.0,118680.0,0.33148]
[1753271050889,0.65848738,118690.0,118680.0,0.7925912]
[1753271051100,0.4301051,118690.0,118680.0,0.80101693]
[1753271051284,0.42168008,118690.0,118680.0,0.7925912]
[1753271051740,0.42168008,118690.0,118680.0,0.801017]
[1753271052805,0.42168008,118690.0,118680.0,0.80944273]
[1753271053223,0.42168008,118690.0,118680.0,0.81786839]
[1753271053425,0.42168008,118690.0,118680.0,0.82629398]
[1753271053788,0.82168008,118690.0,118680.0,0.82629398]
[1753271054620,0.82168008,118690.0,118680.0,0.82629363]
[1753271056069,0.82168008,118690.0,118680.0,0.80944252]
[1753271056291,0.82168008,118690.0,118680.0,0.80101686]
[1753271056895,0.82168008,118690.0,118680.0,0.80944252]
[1753271058259,0.82168008,118690.0,118680.0,0.80101714]
[1753271058926,0.82168008,118690.0,118680.0,0.79259134]
[1753271059350,0.81325485,118690.0,118680.0,0.61564494]
[1753271060012,0.81325485,118690.0,118680.0,0.61544494]
[1753271060219,0.81325485,118690.0,118680.0,0.78396533]
[1753271060434,0.81325485,118690.0,118680.0,0.79239134]
[1753271061091,0.81325485,118690.0,118680.0,0.80081728]
[1753271061278,0.81325485,118690.0,118680.0,0.59853728]
[1753271061556,0.81325485,118690.0,118680.0,0.60696315]
[1753271061765,0.81325485,118690.0,118680.0,0.59853728]
[1753271064790,0.81325485,118690.0,118680.0,0.60696315]
[1753271065218,0.81325485,118690.0,118680.0,0.59853728]
[1753271067237,0.81325485,118690.0,118680.0,0.28416494]
[1753271067465,0.47694633,118680.0,118670.0,0.48751715]
[1753271067678,0.47694633,118680.0,118670.0,0.90052209]
[1753271067679,0.47893633,118680.0,118670.0,0.90052209]
[1753271067905,0.47893633,118680.0,118670.0,0.90052223]
[1753271068113,0.47893633,118680.0,118670.0,0.91942504]
[1753271068548,0.47893633,118680.0,118670.0,0.92785134]
[1753271068774,0.48736213,118680.0,118670.0,0.92785099]
[1753271068989,0.49578786,118680.0,118670.0,0.91942476]
[1753271069201,0.49578786,118680.0,118670.0,0.95491105]
[1753271069621,0.48736213,118680.0,118670.0,0.93805838]
[1753271070047,0.47893633,118680.0,118670.0,0.93805838]
[1753271070259,0.47893633,118680.0,118670.0,0.94648475]
[1753271070716,0.47893633,118680.0,118670.0,0.95491105]
[1753271070942,0.47893633,118680.0,118670.0,0.95591105]
[1753271071936,0.47893633,118680.0,118670.0,0.94748475]
[1753271073139,0.47893633,118680.0,118670.0,0.95591105]
[1753271073994,0.48736234,118680.0,118670.0,0.95591105]
[1753271074695,0.48736234,118680.0,118670.0,0.93905838]
[1753271074896,0.48736234,118680.0,118670.0,0.93901866]
[1753271075075,0.48736234,118680.0,118670.0,0.9474451]
[1753271075485,0.48736234,118680.0,118670.0,0.95587147]
[1753271076571,0.48736234,118680.0,118670.0,0.62779387]
[1753271076769,0.48736234,118680.0,118670.0,0.93901866]
[1753271077677,0.48736234,118680.0,118670.0,0.9474451]
[1753271078714,0.48736234,118680.0,118670.0,0.95587147]
[1753271079035,0.48736234,118680.0,118670.0,0.96429777]
[1753271082242,0.48736206,118680.0,118670.0,0.96429777]
[1753271082450,0.49578807,118680.0,118670.0,0.96429777]
[1753271082667,0.49578807,118680.0,118670.0,0.95587147]
[1753271083311,0.49578807,118680.0,118670.0,0.93901866]
[1753271083727,0.49578807,118680.0,118670.0,0.9474451]
[1753271083968,0.49578807,118680.0,118670.0,0.95587147]
[1753271084594,0.49578807,118680.0,118670.0,0.96429777]
[1753271085129,0.49578807,118680.0,118670.0,0.95587147]
[1753271087881,0.49578807,118680.0,118670.0,0.96429777]
[1753271088526,0.30842552,118680.0,118670.0,1.30854851]
[1753271088737,0.31685125,118680.0,118670.0,1.30854851]
[1753271088975,0.49578758,118680.0,118670.0,0.93901838]
[1753271089185,0.50421359,118680.0,118670.0,0.9474022]
[1753271090033,0.50421359,118680.0,118670.0,0.9558285]
[1753271090252,0.32527712,118680.0,118670.0,0.96425473]
[1753271090454,0.32527712,118680.0,118670.0,0.83545473]
[1753271090709,0.32527712,118680.0,118670.0,1.28390596]
[1753271091292,0.32527712,118680.0,118670.0,1.31050596]
[1753271093119,0.33370306,118680.0,118670.0,1.31050596]
[1753271094000,0.31685125,118680.0,118670.0,1.31050596]
[1753271094217,0.32527712,118680.0,118670.0,1.31050596]
[1753271094558,0.32527712,118680.0,118670.0,1.01160596]
[1753271094984,0.31685125,118680.0,118670.0,1.03850596]
[1753271095202,0.31685125,118680.0,118670.0,0.3992035]
[1753271095428,0.3,118680.0,118670.0,1.12298326]
[1753271095646,0.18254336,118690.0,118670.0,1.12298326]
[1753271095647,0.34096803,118690.0,118680.0,0.24569758]
[1753271095865,0.34939291,118690.0,118680.0,1.01625004]
[1753271096075,0.34096803,118690.0,118680.0,1.01939004]
[1753271096300,0.33254336,118690.0,118680.0,1.01939004]
[1753271096525,0.3409681,118690.0,118680.0,1.01939004]
[1753271096742,0.35781786,118690.0,118680.0,1.01939004]
[1753271097833,0.3409681,118690.0,118680.0,1.01939004]
[1753271098275,0.34096803,118690.0,118680.0,1.01939004]
[1753271098885,0.33254336,118690.0,118680.0,1.01939004]
[1753271099588,0.33254336,118690.0,118680.0,1.10386734]
[1753271100448,0.33254336,118690.0,118680.0,1.01939004]
[1753271102224,0.33254336,118690.0,118680.0,1.02039004]
[1753271102878,0.33254336,118690.0,118680.0,1.03783906]
[1753271103117,0.33254336,118690.0,118680.0,1.35749029]
[1753271103337,0.03246124,118690.0,118680.0,1.44196759]
[1753271103554,0.03246124,118690.0,118680.0,1.52644489]
[1753271104237,0.03246124,118690.0,118680.0,1.52544489]
[1753271104452,0.03246124,118690.0,118680.0,1.39924489]
[1753271104706,0.03246124,118690.0,118680.0,1.52856489]
[1753271104970,0.03246124,118690.0,118680.0,1.53156489]
[1753271105612,0.03246124,118690.0,118680.0,1.21191366]
[1753271105829,0.03246124,118690.0,118680.0,1.08259366]
[1753271106041,0.03246124,118690.0,118680.0,0.99811636]
[1753271106248,0.03246124,118690.0,118680.0,0.91363906]
[1753271106462,0.03246124,118690.0,118680.0,0.2743366]
[1753271106668,0.03246124,118690.0,118680.0,1.04311906]
[1753271107090,0.04931086,118690.0,118680.0,0.91363906]
[1753271107301,0.20773595,118690.0,118680.0,0.66096018]
[1753271107521,0.20773588,118690.0,118680.0,0.94500376]
[1753271107727,0.34931086,118690.0,118680.0,0.94500376]
[1753271107970,0.34088598,118690.0,118680.0,0.94500376]
[1753271108400,0.33246124,118690.0,118680.0,1.05658106]
[1753271108953,0.34088591,118690.0,118680.0,1.05658106]
[1753271109359,0.34931072,118690.0,118680.0,1.05658106]
[1753271109993,0.34931072,118690.0,118680.0,0.97210376]
[1753271110471,0.3577356,118690.0,118680.0,0.4040166]
[1753271110646,0.3577356,118690.0,118680.0,0.97210376]
[1753271110854,0.36616062,118690.0,118680.0,0.94500376]
[1753271111455,0.3577356,118690.0,118680.0,0.94500376]
[1753271111617,0.35773567,118690.0,118680.0,0.94500376]
[1753271111815,0.34931072,118690.0,118680.0,0.94500376]
[1753271112020,0.36616069,118690.0,118680.0,0.94500376]
[1753271112465,0.53466688,118690.0,118680.0,0.49717991]
[1753271112698,0.351291,118690.0,118680.0,0.62689703]
[1753271113069,0.35773609,118690.0,118680.0,0.91094061]
[1753271113257,0.36616125,118690.0,118680.0,0.93644061]
[1753271113469,0.36616125,118690.0,118680.0,0.99231438]
[1753271114220,0.34931107,118690.0,118680.0,1.01801438]
[1753271114534,0.349311,118690.0,118680.0,1.01801438]
[1753271114763,0.34931107,118690.0,118680.0,0.96214061]
[1753271114981,0.349311,118690.0,118680.0,0.96214061]
[1753271115402,0.35773609,118690.0,118680.0,0.96214061]
[1753271115906,0.36616125,118690.0,118680.0,0.93644061]
[1753271116148,0.349311,118690.0,118680.0,0.93644061]
[1753271116378,0.349311,118690.0,118680.0,0.96284061]
[1753271116598,0.349311,118690.0,118680.0,1.04731791]
[1753271117284,0.35773609,118690.0,118680.0,1.04731791]
[1753271117482,0.349311,118690.0,118680.0,1.04731791]
[1753271117630,0.35773616,118690.0,118680.0,0.96284061]
[1753271117865,0.35773609,118690.0,118680.0,0.96284061]
[1753271118073,0.35773602,118690.0,118680.0,0.96284061]
[1753271118736,0.349311,118690.0,118680.0,0.96284061]
[1753271118969,0.349311,118690.0,118680.0,0.99818338]
[1753271119864,0.35773609,118690.0,118680.0,0.99818338]
[1753271120074,0.35773609,118690.0,118680.0,0.96284061]
[1753271120530,0.349311,118690.0,118680.0,0.96284061]
[1753271122638,0.35773609,118690.0,118680.0,0.96284061]
[1753271123301,0.349311,118690.0,118680.0,0.96284061]
[1753271123690,0.35773616,118690.0,118680.0,0.93644061]
[1753271123900,0.53664765,118690.0,118680.0,0.91094061]
[1753271124109,0.53664765,118690.0,118680.0,0.91094075]
[1753271124322,0.53664765,118690.0,118680.0,0.91936634]
[1753271124526,0.53664765,118690.0,118680.0,0.91944634]
[1753271124747,0.53664765,118690.0,118680.0,0.91944592]
[1753271125368,0.53664765,118690.0,118680.0,0.89416908]
[1753271125572,0.53664765,118690.0,118680.0,0.45856397]
[1753271125725,0.57149789,118690.0,118680.0,0.41964358]
[1753271126149,0.38614124,118690.0,118680.0,0.58816397]
[1753271126333,0.52822263,118690.0,118680.0,0.60501578]
[1753271126742,0.52822263,118690.0,118680.0,0.61344151]
[1753271127585,0.52822263,118690.0,118680.0,0.61044151]
[1753271127809,0.52822263,118690.0,118680.0,0.59901578]
[1753271128230,0.52822263,118690.0,118680.0,0.60001578]
[1753271128716,0.55292263,118690.0,118680.0,0.1306]
[1753271128958,0.56327266,118690.0,118680.0,0.41464358]
[1753271129671,0.56327266,118690.0,118680.0,0.58316397]
[1753271129880,0.55484743,118690.0,118680.0,0.59158998]
[1753271130311,0.55484743,118690.0,118680.0,0.41464358]
[1753271130747,0.55484743,118690.0,118680.0,0.1306]
[1753271130962,0.55484743,118690.0,118680.0,0.41464358]
[1753271132957,0.64165473,118690.0,118680.0,0.13068]
[1753271133202,0.63932473,118690.0,118680.0,0.41472358]
[1753271135378,0.63932473,118690.0,118680.0,0.41468103]
[1753271135581,0.64165473,118690.0,118680.0,0.41468103]
[1753271136208,0.64165473,118690.0,118680.0,0.13063745]
[1753271136421,0.64165473,118690.0,118680.0,0.41468103]
[1753271136836,0.63932473,118690.0,118680.0,0.41468103]
[1753271139014,0.63932473,118690.0,118680.0,0.13063745]
[1753271139222,0.63932473,118690.0,118680.0,0.41468103]
[1753271141313,0.63932473,118690.0,118680.0,0.76982261]
[1753271142973,0.63932473,118690.0,118680.0,0.13063745]
[1753271143184,0.63932473,118690.0,118680.0,0.45023003]
[1753271143185,0.64165473,118690.0,118680.0,0.45023003]
[1753271144047,0.64165473,118690.0,118680.0,0.76982261]
[1753271144246,0.63932473,118690.0,118680.0,0.76982261]
[1753271145930,0.63932473,118690.0,118680.0,0.13063745]
[1753271146169,0.63932473,118690.0,118680.0,0.76982261]
[1753271148580,0.55484743,118690.0,118680.0,0.76982261]
[1753271149210,0.63932473,118690.0,118680.0,0.13063745]
[1753271149415,0.63932473,118690.0,118680.0,0.76982261]
[1753271152053,0.61212473,118690.0,118680.0,0.76982261]
[1753271152220,0.61212473,118690.0,118680.0,0.32055003]
[1753271152221,0.97885473,118690.0,118680.0,0.32055003]
[1753271152489,0.97885473,118690.0,118680.0,0.44999003]
[1753271154698,0.97652473,118690.0,118680.0,0.44999003]
[1753271156140,0.97657377,118690.0,118680.0,0.44999003]
[1753271156600,0.97657377,118690.0,118680.0,0.13039745]
[1753271156816,0.97657377,118690.0,118680.0,0.44999003]
[1753271159807,0.97890377,118690.0,118680.0,0.44999003]
[1753271161218,0.97657377,118690.0,118680.0,0.44999003]
[1753271164289,0.95217377,118690.0,118680.0,0.44999003]
[1753271165174,0.95217377,118690.0,118680.0,0.13039745]
[1753271165460,0.95217377,118690.0,118680.0,0.44999003]
[1753271168564,0.92747377,118690.0,118680.0,0.44999003]
[1753271168787,0.92747377,118690.0,118680.0,0.13039745]
[1753271169006,0.97557377,118690.0,118680.0,0.13039745]
[1753271169230,0.97790377,118690.0,118680.0,0.13039745]
[1753271169449,1.37790377,118690.0,118680.0,0.44999003]
[1753271170373,1.37790377,118690.0,118680.0,0.13039745]
[1753271170604,1.37790377,118690.0,118680.0,0.44999003]
[1753271172410,1.37790377,118690.0,118680.0,0.13039745]
[1753271172630,0.97790377,118690.0,118680.0,0.13039745]
[1753271172858,1.35491555,118690.0,118680.0,0.00095745]
[1753271173076,1.29749635,118690.0,118680.0,0.13039745]
[1753271173289,0.97790377,118690.0,118680.0,0.13039745]
[1753271174422,0.97790377,118690.0,118680.0,0.12944]
[1753271174631,6.02790377,118690.0,118680.0,0.12944]
[1753271177583,6.34749635,118690.0,118680.0,0.12944]
[1753271181331,6.3632846,118690.0,118680.0,0.12944]
[1753271181948,0.47696117,118670.0,118660.0,0.32259258]
[1753271182172,0.56341847,118670.0,118660.0,0.45199258]
[1753271183324,0.56341847,118670.0,118660.0,0.45514258]
[1753271183621,0.96341847,118670.0,118660.0,0.45514258]
[1753271183961,0.96341847,118670.0,118660.0,0.45723258]
[1753271185069,0.96341847,118670.0,118660.0,0.45823258]
[1753271185661,0.96341847,118670.0,118660.0,0.45723258]
[1753271187142,0.96341847,118670.0,118660.0,0.45718991]
[1753271188937,0.96341847,118670.0,118660.0,0.48248991]
[1753271194655,0.9634812,118670.0,118660.0,0.48248991]
[1753271195075,0.9634812,118670.0,118660.0,0.16289733]
[1753271195286,0.9634812,118670.0,118660.0,0.48248991]
[1753271196169,0.9634812,118670.0,118660.0,0.45718991]
[1753271197273,0.9634812,118670.0,118660.0,0.45194991]
[1753271197983,0.9569112,118670.0,118660.0,0.13207733]
[1753271199501,0.9569112,118670.0,118660.0,0.45166991]
[1753271199718,0.9545812,118670.0,118660.0,0.45166991]
[1753271199943,0.9545812,118670.0,118660.0,0.13207733]
[1753271200134,0.9545812,118670.0,118660.0,0.45166991]
[1753271200622,0.9291812,118670.0,118660.0,0.45166991]
[1753271200854,0.9034812,118670.0,118660.0,0.45166991]
[1753271201079,0.9034812,118670.0,118660.0,0.13207733]
[1753271201288,0.9034812,118670.0,118660.0,0.45166991]
[1753271205598,0.9034812,118670.0,118660.0,0.13207733]
[1753271205877,0.9547812,118670.0,118660.0,0.45166991]
[1753271206974,0.9547812,118670.0,118660.0,0.13207733]
[1753271207158,0.9547812,118670.0,118660.0,0.45166991]
[1753271207159,0.9552112,118670.0,118660.0,0.45166991]
[1753271207639,0.9282812,118670.0,118660.0,0.45158991]
[1753271207777,0.9034812,118670.0,118660.0,0.45158991]
[1753271208193,0.9034812,118670.0,118660.0,0.13199733]
[1753271208395,0.9034812,118670.0,118660.0,0.45158991]
[1753271209767,0.9015012,118670.0,118660.0,0.32464991]
[1753271209986,0.3929664,118670.0,118660.0,0.89087273]
[1753271210202,0.40981914,118670.0,118660.0,1.08754027]
[1753271210418,0.58678045,118670.0,118660.0,0.75952075]
[1753271210622,0.56992792,118670.0,118660.0,0.7510936]
[1753271210838,0.56150134,118670.0,118660.0,0.7510936]
[1753271211050,0.56150134,118670.0,118660.0,0.75952082]
[1753271211370,0.56150134,118670.0,118660.0,0.7510936]
[1753271211768,0.56150134,118670.0,118660.0,0.68346606]
[1753271212020,0.56150134,118670.0,118660.0,0.69189335]
[1753271213662,0.56150134,118670.0,118660.0,0.68346606]
[1753271214226,0.56150134,118670.0,118660.0,0.69189335]
[1753271214709,0.56150134,118670.0,118660.0,0.37230077]
[1753271214842,0.56150134,118670.0,118660.0,0.69189335]
[1753271216509,0.55307462,118670.0,118660.0,0.6750387]
[1753271216722,0.55307462,118670.0,118660.0,0.69189335]
[1753271217365,0.55307462,118670.0,118660.0,0.70032057]
[1753271218957,0.55307462,118670.0,118660.0,0.50648991]
[1753271219932,0.55307462,118670.0,118660.0,0.37744991]
[1753271220148,0.55307462,118670.0,118660.0,0.50644991]
[1753271231777,0.55301189,118670.0,118660.0,0.50644991]
[1753271236016,0.55301189,118670.0,118660.0,0.37744991]
[1753271236191,0.55301189,118670.0,118660.0,0.50644991]
[1753271238732,0.55301189,118670.0,118660.0,0.50640724]
[1753271240435,0.55301189,118670.0,118660.0,0.32760724]
[1753271240659,0.55499189,118670.0,118660.0,0.00291466]
[1753271240886,0.58119189,118670.0,118660.0,0.45150724]
[1753271241159,1.00609189,118670.0,118660.0,0.45150724]
[1753271242934,0.98119189,118670.0,118660.0,0.45150724]
[1753271243312,0.95499189,118670.0,118660.0,0.45150724]
[1753271243714,0.95499189,118670.0,118660.0,0.13191466]
[1753271243943,0.95499189,118670.0,118660.0,0.45150724]
[1753271246544,0.95499189,118670.0,118660.0,0.13191466]
[1753271246754,0.95499189,118670.0,118660.0,0.45150724]
[1753271258537,0.95499189,118670.0,118660.0,0.45150724]
[1753271260370,0.98069189,118670.0,118660.0,0.45150724]
[1753271261614,0.95499189,118670.0,118660.0,0.45150724]
[1753271265356,0.55499189,118670.0,118660.0,0.45150724]
[1753271265788,0.95499189,118670.0,118660.0,0.45150724]
[1753271271555,0.95499189,118670.0,118660.0,0.13191466]
[1753271271764,0.95499189,118670.0,118660.0,0.45150724]
[1753271272197,0.55499189,118670.0,118660.0,0.45150724]
[1753271274024,0.55499189,118670.0,118660.0,0.45456724]
[1753271284337,0.55499189,118670.0,118660.0,0.45664724]
[1753271286483,0.55301189,118670.0,118660.0,0.48154724]
[1753271286712,0.95301189,118670.0,118660.0,0.50604724]
[1753271287673,0.95301189,118670.0,118660.0,0.50600459]
[1753271292427,0.56143847,118670.0,118660.0,0.50600459]
[1753271294147,0.56143847,118670.0,118660.0,0.67455338]
[1753271294325,0.56143847,118670.0,118660.0,0.50600459]
[1753271295410,0.56143847,118670.0,118660.0,0.05741201]
[1753271295618,0.56143847,118670.0,118660.0,0.50588459]
[1753271297906,0.96143847,118670.0,118660.0,0.18629201]
[1753271298136,0.96143847,118670.0,118660.0,0.50588459]
[1753271298638,0.56143847,118670.0,118660.0,0.50588459]
[1753271299065,0.96143847,118670.0,118660.0,0.50588459]
[1753271302662,0.96143847,118670.0,118660.0,0.48138459]
[1753271307016,0.96143847,118670.0,118660.0,0.16179201]
[1753271307237,0.96143847,118670.0,118660.0,0.48138459]
[1753271309427,0.96143847,118670.0,118660.0,0.50538459]
[1753271314874,0.96143847,118670.0,118660.0,0.37650459]
[1753271315001,0.96143847,118670.0,118660.0,0.50534459]
[1753271319299,0.96143847,118670.0,118660.0,0.48134459]
[1753271320794,0.96143847,118670.0,118660.0,0.16175201]
[1753271321020,0.96143847,118670.0,118660.0,0.48134459]
[1753271322319,0.96341847,118670.0,118660.0,0.45644459]
[1753271323177,0.96341847,118670.0,118660.0,0.45126459]
[1753271323405,0.61411847,118670.0,118660.0,0.45126459]
[1753271323826,1.01411847,118670.0,118660.0,0.45126459]
[1753271324997,0.61411847,118670.0,118660.0,0.13167201]
[1753271325202,0.61411847,118670.0,118660.0,0.45126459]
[1753271325417,0.76411847,118670.0,118660.0,0.45126459]
[1753271326056,1.16411847,118670.0,118660.0,0.45126459]
[1753271327692,1.16361847,118670.0,118660.0,0.45126459]
[1753271327933,1.16361847,118670.0,118660.0,0.13167201]
[1753271328150,1.16361847,118670.0,118660.0,0.45126459]
[1753271329025,0.76594847,118670.0,118660.0,0.45126459]
[1753271329921,0.76361847,118670.0,118660.0,0.45126459]
[1753271334066,0.73871847,118670.0,118660.0,0.45126459]